[Event "Czech Championship 2022"]
[Site "Usti nad Labem"]
[Date "2022.05.21"]
[Round "8.8"]
[White "Finek, Vaclav"]
[Black "Smolik, Jachym"]
[Result "1-0"]
[ECO "E04"]
[WhiteElo "2410"]
[BlackElo "2272"]
[Annotator "TA"]
[PlyCount "93"]
[EventDate "2022.05.12"]
[EventType "swiss"]
[EventCountry "CZE"]
[SourceTitle "playchess.com"]
[Source "ChessBase"]
[SourceQuality "1"]
[TimeControl "40/5400+30:1800+30"]

{[%evp 15,93,37,43,37,36,42,36,37,39,10,10,8,22,8,30,25,26,29,77,70,78,68,64,60,77,78,79,79,76,54,72,59,60,62,55,56,71,70,104,99,240,201,201,201,201,201,192,192,206,204,202,204,247,173,171,173,173,173,173,172,173,173,169,137,193,189,659,659,644,644,633,633,633,604,583,562,6495,6375,5481,2339]} 1. Nf3 {[%emt 0:00:04]} Nf6 {[%emt 0:00:08]} 2. c4 {[%emt 0:00:03]} e6 {[%emt 0:00:06]} 3. g3 {[%emt 0:00:08]} d5 {[%emt 0:00:05]} 4. d4 {[%emt 0:00:03]} dxc4 {[%emt 0:00:49]} 5. Bg2 {[%emt 0:00:06]} a6 {[%emt 0:01:27]} 6. O-O {[%emt 0:00:14]} Nc6 {[%emt 0:01:06]} 7. e3 {[%emt 0:01:05]} Bd7 {[%emt 0:05:10]} 8. Qe2 {[%emt 0:00:11]} b5 {[%emt 0:15:46] 8...Bd6 is the modern continuation.} 9. b3 {[%emt 0:03:49] E04: Open Catalan: 5 Nf3.} cxb3 {[%emt 0:00:59]} 10. axb3 {[%emt 0:00:06]} Be7 {[%emt 0:11:24]} 11. Bb2 {[%emt 0:00:34][%mdl 1024] White has compensation. White is slightly better.} O-O {[%emt 0:01:03]} 12. Nbd2 {[%emt 0:05:45]} Nb4 {[%emt 0:06:11]} 13. Ne5 {[%emt 0:01:55]} c6 {[%emt 0:01:50]} 14. Rfc1 {[%emt 0:00:22]} Rc8 {[%emt 0:03:14] [#]} 15. Ne4 $146 {[%emt 0:13:44]} ({Predecessor:} 15. h4 Be8 16. Ba3 a5 17. h5 Qb6 18. h6 g6 19. Nd3 Bd7 20. Nc5 Rfd8 21. Bxb4 axb4 {½-½ (40) Kezin,R (2445)-Airapetian,G (2437) Sochi 2018}) 15... Nxe4 {[%emt 0:02:29]} 16. Bxe4 {[%emt 0:00:12]} Be8 {[%emt 0:07:08]} (16... f6 $1 $11 17. Nd3 (17. Nxd7 Qxd7 18. Bc3 Nd5 $14) (17. Qh5 f5 $11) 17... Nxd3 18. Qxd3 f5) 17. Ba3 $16 {[%emt 0:14:15]} (17. Qh5 $2 f5 18. Qf3 fxe4 $19) 17... Qb6 {[%emt 0:12:59]} 18. Bxb4 {[%emt 0:08:31]} (18. Qh5 $6 f5 19. Qh3 a5 $15) 18... Bxb4 {[%emt 0:00:32]} 19. Nd3 {[%emt 0:00:11] White is much more active. The black rooks are badly placed.} (19. Qh5 f5 20. Qh3 Bd6 $17) 19... Be7 {[%emt 0:02:05]} 20. Qa2 {[%emt 0:00:44]} ({Avoid the trap} 20. Qh5 $2 f5 21. Qf3 fxe4 $19) (20. Nc5 a5 $11) 20... Ra8 {[%emt 0:02:07]} 21. Ne5 {[%emt 0:10:27]} a5 {[%emt 0:00:46]} 22. Qb1 {[%emt 0:06:45][%cal Re5c6]} g6 {[%emt 0:07:53]} 23. Ra2 {[%emt 0:01:04]} Rc8 {[%emt 0:01:00]} 24. Qa1 $1 {[%emt 0:01:42]} f6 {[%emt 0:03:01]} 25. Nd3 {[%emt 0:00:33]} Ra8 {[%emt 0:01:44]} 26. Nf4 {[%emt 0:03:04]} Kf7 {[%emt 0:04:05]} 27. Rac2 $1 {[%emt 0:01:14][%cal Re4c6]} Qb7 {[%emt 0:02:28] [#] This costs Black the game.} (27... Rc8 $16 {keeps fighting.}) 28. Nxe6 $1 {[%emt 0:14:40][%mdl 512]} Kxe6 {[%emt 0:01:19]} 29. Rxc6+ {[%emt 0:00:07]} Bxc6 {[%emt 0:00:15]} 30. Rxc6+ {[%emt 0:00:03]} Kd7 {[%emt 0:03:59] [#] And now ...Qxc6 would win.} 31. Rd6+ {[%emt 0:00:04][%mdl 576] Discovered Attack} Bxd6 {[%emt 0:00:02]} 32. Bxb7 {[%emt 0:00:08]} Ra7 {[%emt 0:00:04]} 33. Bd5 {[%emt 0:00:05]} a4 {[%emt 0:01:16]} 34. bxa4 {[%emt 0:03:52]} bxa4 {[%emt 0:00:11]} 35. Qf1 {[%emt 0:00:49] Black must now prevent Qh3+.} f5 {[%emt 0:01:03]} 36. Qb5+ {[%emt 0:01:36]} Ke7 {[%emt 0:00:06] [#]} 37. Ba2 $1 {[%emt 0:00:33]} a3 {[%emt 0:01:28]} 38. Qd5 $36 {[%emt 0:02:18][%mdl 2048] Threatens to win with Qe6+. White is on the roll.} Kd7 {[%emt 0:00:01]} 39. Bc4 {[%emt 0:03:56]} Rc8 {[%emt 0:02:05] [#]} (39... Rfa8 $16) 40. Qf7+ $1 $18 {[%emt 0:03:27]} Be7 $2 {[%emt 0:00:01]} (40... Kd8 41. Qxa7 Rxc4) 41. Be6+ {[%emt 0:06:11] White is clearly winning.} Kd6 {[%emt 0:00:00] Strongly threatening ...Rf8.} 42. Bxc8 {[%emt 0:00:37] Intending Qc4 and mate.} a2 {[%emt 0:00:00]} 43. Qe6+ {[%emt 0:00:26]} Kc7 {[%emt 0:00:01]} 44. Qxe7+ {[%emt 0:01:04]} Kb8 {[%emt 0:00:02]} 45. Qb4+ {[%emt 0:01:59]} Ka8 {[%emt 0:00:12] [#]} 46. Bb7+ $1 {[%emt 0:00:35]} Rxb7 {[%emt 0:00:08]} 47. Qf8+ {[%emt 0:00:19] Weighted Error Value: White=0.07 (flawless) /Black=0.29 (precise)} 1-0

[Event "Czech Championship 2022"]
[Site "Usti nad Labem"]
[Date "2022.05.21"]
[Round "8.9"]
[White "Brejnik, Gustav"]
[Black "Mikes, Jan"]
[Result "1-0"]
[ECO "A67"]
[WhiteElo "2246"]
[BlackElo "2349"]
[Annotator "TA"]
[PlyCount "79"]
[EventDate "2022.05.12"]
[EventType "swiss"]
[EventCountry "CZE"]
[SourceTitle "playchess.com"]
[Source "ChessBase"]
[SourceQuality "1"]
[TimeControl "40/5400+30:1800+30"]

{[%evp 22,79,22,22,22,29,24,14,25,29,29,26,22,-8,0,-333,0,0,38,-29,-33,-15,-29,0,-37,-22,0,0,100,35,95,20,60,0,0,0,475,450,627,611,773,728,728,658,752,558,566,542,2430,2179,1795,1794,1655,1425,5273,5197,29976,1209,29975,29978]} 1. d4 {[%emt 0:00:03]} Nf6 {[%emt 0:00:13]} 2. c4 {[%emt 0:00:05]} c5 {[%emt 0:00:22]} 3. d5 {[%emt 0:00:11]} e6 {[%emt 0:00:06]} 4. Nc3 {[%emt 0:00:04]} exd5 {[%emt 0:00:04]} 5. cxd5 {[%emt 0:00:02]} d6 {[%emt 0:00:05]} 6. e4 {[%emt 0:00:48]} g6 {[%emt 0:00:12]} 7. f4 {[%emt 0:00:17]} Bg7 {[%emt 0:00:06]} 8. Bb5+ {[%emt 0:00:04]} Nfd7 {[%emt 0:00:04]} 9. Nf3 {[%emt 0:00:10]} O-O {[%emt 0:00:07]} 10. O-O {[%emt 0:00:18]} a6 {[%emt 0:03:18]} 11. Bd3 {[%emt 0:00:44]} b5 {[%emt 0:04:49]} 12. a3 {[%emt 0:05:50]} Nb6 {[%emt 0:06:05] A67: Modern Benoni: Taimanov Variation.} 13. f5 {[%emt 0:22:53]} N8d7 {[%emt 0:07:12]} 14. Bg5 {[%emt 0:04:50]} Bf6 {[%emt 0:03:25] [#] The position is equal.} 15. Qd2 $146 {[%emt 0:13:44]} ({Predecessor:} 15. h4 Qe7 16. Qe1 Ne5 17. Nxe5 Qxe5 18. Bxf6 Qxf6 19. Qg3 Nd7 20. Rf4 Ne5 21. Raf1 {0-1 (38) Prasanna Raghuram,R (2466)-Castellanos Rodriguez,R (2484) Forni di Sopra 2016}) 15... Bxg5 {[%emt 0:06:12]} 16. Nxg5 {[%emt 0:00:08]} (16. Qxg5 Qxg5 17. Nxg5 h6 $15) 16... Ne5 {[%emt 0:01:44]} 17. fxg6 {[%emt 0:24:43]} hxg6 {[%emt 0:02:14]} 18. Qf4 $2 {[%emt 0:01:06][%mdl 8192]} Kg7 $2 {[%emt 0:01:26]} (18... Nxd3 19. Qh4 Qxg5 20. Qxg5 $18) ({Better is} 18... f6 $1 $19 19. Bxb5 axb5) 19. Be2 $11 {[%emt 0:01:43]} Nbc4 {[%emt 0:20:38]} 20. Nd1 {[%emt 0:02:25]} (20. b4 $14) 20... f6 {[%emt 0:01:48]} 21. Nf3 {[%emt 0:03:33]} f5 {[%emt 0:12:06] aiming for ...fxe4.} 22. Ng5 $40 {[%emt 0:03:49][%mdl 128] White attacks.} fxe4 {[%emt 0:01:30]} 23. Qh4 {[%emt 0:00:11][%csl Gg5][%cal Rh4h7]} Rh8 {[%emt 0:00:30] Prevents Qh7+.} 24. Qf4 {[%emt 0:00:42]} Ra7 {[%emt 0:05:22]} (24... Rf8 $11 {keeps the balance.} 25. Qh4 Rxf1+ 26. Bxf1 Qh8) 25. Bxc4 {[%emt 0:00:28]} ({Worse is} 25. Nxe4 Rh4 26. Qg5 Qxg5 27. Nxg5 Nd2 $17) ({White should play} 25. Nc3 $16) 25... bxc4 {[%emt 0:02:10]} (25... Rh5 $1 $14) 26. Nc3 {[%emt 0:00:01]} ({Much worse is} 26. Ne3 $6 Rb7 $11) (26. Nf2 $1 $16 {[%cal Rf2e4]}) 26... Nd3 {[%emt 0:06:00]} 27. Qe3 {[%emt 0:02:09]} (27. Qg3 $1 $14 e3 28. Qxe3) 27... Qe8 {[%emt 0:06:14] Strongly threatening ...Qe5.} 28. Ncxe4 {[%emt 0:00:34][%cal Ob2b3] Dancing on a razor blade.} Re7 $2 {[%emt 0:04:08][%mdl 8192]} (28... Qe5 $11 29. Qg3 Qxg3 30. hxg3 Rh5) 29. Qf3 $18 {[%emt 0:01:23]} Bf5 {[%emt 0:02:50][%cal Re7e4]} 30. Nxd6 {[%emt 0:00:56]} Qb8 {[%emt 0:00:04]} 31. Qg3 {[%emt 0:01:44]} ({But not} 31. Nge4 $2 Rxe4 $1 {[%mdl 512]} 32. Nxf5+ gxf5 $19) 31... Bd7 {[%emt 0:01:39]} 32. Ngf7 {[%emt 0:02:14] Pair of Knights!} Rf8 {[%emt 0:01:23]} 33. Qh4 {[%emt 0:01:21] White wants to mate with Qh6+.} Rexf7 {[%emt 0:00:36]} 34. Nxf7 {[%emt 0:00:30] Intending Qh6+ and mate.} Rxf7 {[%emt 0:00:06]} 35. Rxf7+ {[%emt 0:00:08]} Kxf7 {[%emt 0:00:03]} 36. Qh7+ {[%emt 0:00:21][%mdl 64] Skewer} Kf6 {[%emt 0:00:07]} 37. Qxd7 {[%emt 0:00:14] Threatens to win with d6.} Qxb2 {[%emt 0:00:22] [#]} 38. Rf1+ $1 {[%emt 0:00:15]} Ke5 {[%emt 0:00:42]} 39. Qe6+ {[%emt 0:00:25]} Kd4 {[%emt 0:00:03]} 40. d6 {[%emt 0:00:43] Weighted Error Value: White=0.56/Black=1.05} 1-0

[Event "Czech Championship 2022"]
[Site "Usti nad Labem"]
[Date "2022.05.21"]
[Round "8.10"]
[White "Babula, Vlastimil jr"]
[Black "Mica, Marek"]
[Result "1/2-1/2"]
[ECO "B12"]
[WhiteElo "2217"]
[BlackElo "2343"]
[Annotator "TA"]
[PlyCount "145"]
[EventDate "2022.05.12"]
[EventType "swiss"]
[EventCountry "CZE"]
[SourceTitle "playchess.com"]
[Source "ChessBase"]
[SourceQuality "1"]
[TimeControl "40/5400+30:1800+30"]

{[%evp 11,145,10,12,0,13,-14,10,0,-6,-11,0,0,0,-167,-166,-238,-245,-248,-118,-98,-93,-100,0,-227,-230,-242,-236,-239,-171,-167,-71,-342,-340,-422,-405,-431,-427,-421,0,0,0,0,0,0,0,0,0,0,0,0,0,0,0,0,0,0,0,0,0,0,0,4,47,0,0,0,0,0,0,0,0,0,0,0,0,0,0,0,0,0,0,0,0,-32,0,0,0,0,0,-68,0,0,0,-79,0,0,0,0,0,0,0,-79,0,0,0,0,0,0,0,0,0,0,0,0,0,0,0,0,0,0,0,0,0,0,0,0,0,0,0,0,0,0,0,0,0,0]} 1. e4 {[%emt 0:00:09]} c6 {[%emt 0:00:06]} 2. d4 {[%emt 0:00:22]} d5 {[%emt 0:00:07]} 3. e5 {[%emt 0:00:08]} Bf5 {[%emt 0:00:33]} 4. h4 {[%emt 0:00:29]} h5 {[%emt 0:00:06]} 5. Bd3 {[%emt 0:00:15]} Bxd3 {[%emt 0:00:08]} 6. Qxd3 {[%emt 0:00:08]} e6 {[%emt 0:00:10]} 7. Bg5 {[%emt 0:00:08] B12: Caro-Kann: Advance Variation.} Be7 {[%emt 0:06:18]} 8. f4 {[%emt 0:00:24][%cal Bf2f4,Bf4f5][%mdl 32] [#]} Qb6 $146 {[%emt 0:06:34]} ({Predecessor:} 8... g6 9. Nf3 Nd7 10. O-O Qb6 11. Nbd2 Nh6 12. Bxh6 Rxh6 13. c4 Kf8 14. c5 Qd8 {½-½ (55) Machacek,L (1579)-Barak,D (1658) Kouty nad Desnou 2017}) 9. Nd2 {[%emt 0:02:48] Active counter play!} c5 {[%emt 0:08:51]} 10. f5 {[%emt 0:16:58]} Qxb2 {[%emt 0:06:13]} 11. Rb1 {[%emt 0:15:47]} c4 {[%emt 0:05:10] Hoping for ...Qxb1+.} 12. Qe3 $2 {[%emt 0:16:55]} (12. c3 $11 {and White has nothing to worry.}) 12... Qxc2 $19 {[%emt 0:01:05] aiming for ...c3.} 13. Ne2 {[%emt 0:00:50] Against c3} (13. Rxb7 $142 Nc6 14. fxe6 Qc1+ 15. Kf2 fxe6 16. Ndf3) 13... Qxf5 {[%emt 0:05:11] And now ...b6 would win.} 14. Rf1 {[%emt 0:04:03]} Bxg5 {[%emt 0:01:18]} (14... Qg6 $19 {has better winning chances.} 15. Rxb7 Nc6) 15. hxg5 $17 {[%emt 0:00:40]} Qg6 {[%emt 0:02:30]} (15... Qd3 $6 16. Qf2 Qg6 17. Rxb7 $11) 16. Rxb7 {[%emt 0:05:32]} Ne7 {[%emt 0:06:57]} ({Better is} 16... Nc6 $1 $17 {Strongly threatening ...Nge7.} 17. Nf4 Qxg5 18. Nxd5 Qxe3+ 19. Nxe3 Nh6 20. Ndxc4 O-O) 17. Qf3 $2 {[%emt 0:24:14]} (17. Rxe7+ $1 $11 {and White is okay.} Kxe7 18. Nf4) 17... Nbc6 $19 {[%emt 0:03:53] Threatens to win with ...0-0.} 18. Nf4 {[%emt 0:00:57]} Qf5 {[%emt 0:03:09]} (18... Qxg5 19. Nxe6 $1 {[%mdl 512]} Qg6 20. Nc7+ Kd8 21. Nxa8 $18) 19. Nxc4 {[%emt 0:03:35]} O-O {[%emt 0:07:17]} (19... Nxd4 $2 20. Nd6+ Kf8 21. Nxe6+ Kg8 22. Nxd4 $18) 20. Nd6 {[%emt 0:00:32]} Qxg5 {[%emt 0:08:53]} (20... Qc2 $19 {is more deadly.} 21. Ne2 Ng6) 21. Ne2 {[%emt 0:03:13][%mdl 8192] [#]} (21. Qxh5 $17 Qxh5 22. Nxh5) 21... Nxd4 $1 {[%emt 0:02:17][%mdl 512]} 22. Nxd4 {[%emt 0:00:24] Qf4 is the strong threat.} (22. Qf4 Qxf4) 22... Qxe5+ {[%emt 0:00:08]} 23. Ne2 {[%emt 0:00:05][%cal Rd6f7]} Qxd6 {[%emt 0:00:39]} 24. Qxh5 {[%emt 0:00:05]} Rab8 $2 {[%emt 0:08:02]} (24... g6 $19 25. Qh3 Kg7) 25. Rh1 $11 {[%emt 0:00:35][%csl Gh1][%cal Rh5h7]} f5 {[%emt 0:01:39]} 26. Qh7+ {[%emt 0:00:13]} Kf7 {[%emt 0:00:23]} 27. Qh5+ {[%emt 0:00:05]} Kg8 {[%emt 0:02:29]} (27... Kf6 $5 28. Qh4+ Kf7 29. Qh5+ Kg8 30. Qh7+ Kf7 31. Qh5+ $11) 28. Qh7+ {[%emt 0:00:05]} Kf7 {[%emt 0:00:04]} 29. Qh5+ {[%emt 0:00:04]} g6 {[%emt 0:05:29]} (29... Kf6 $5 30. Qh4+ Kf7 31. Qh5+ $11) 30. Qh7+ {[%emt 0:00:04]} Ke8 {[%emt 0:00:04]} (30... Kf6 $5 31. Qh4+ Kf7 32. Qh7+ (32. Qxe7+ Qxe7 33. Rh7+ Kf6 $11) 32... Kf6 33. Qh4+ Kf7 34. Qh7+ $11 (34. Qxe7+ Qxe7 35. Rh7+ Kf6 $11)) 31. Qxe7+ {[%emt 0:00:39]} Qxe7 {[%emt 0:00:04]} 32. Rxb8+ {[%emt 0:00:03]} Kf7 {[%emt 0:00:20]} 33. Rh7+ {[%emt 0:00:16]} Kf6 {[%emt 0:00:23]} 34. Rxe7 {[%emt 0:00:18]} Rxb8 {[%emt 0:00:15]} 35. Rxa7 {[%emt 0:00:10][%mdl 4096] Endgame KRN-KR} e5 {[%emt 0:01:32]} 36. Ra6+ {[%emt 0:00:31]} Kg5 {[%emt 0:01:39]} 37. Re6 {[%emt 0:00:06]} (37. Ra5 $1 $14 {is more appropriate.}) 37... e4 {[%emt 0:00:40]} 38. Rd6 {[%emt 0:03:34]} Rb1+ {[%emt 0:02:12]} 39. Kf2 {[%emt 0:01:13]} f4 {[%emt 0:01:52] ( -> ...e3+)} 40. Rxd5+ {[%emt 0:02:13]} Kg4 {[%emt 0:00:13][%csl Gf4][%cal Re4e3]} 41. Nc3 {[%emt 0:03:42]} e3+ {[%emt 0:00:45]} 42. Ke2 {[%emt 0:00:26]} Rb2+ {[%emt 0:00:24]} 43. Kf1 {[%emt 0:03:16]} Rf2+ {[%emt 0:00:43]} 44. Kg1 {[%emt 0:01:39]} Rc2 {[%emt 0:01:04]} 45. Rd3 {[%emt 0:07:19]} Rc1+ {[%emt 0:11:27]} (45... Kg3 $5 46. Ne4+ Kg4 $11) 46. Kh2 {[%emt 0:00:15]} g5 {[%emt 0:02:18]} 47. Ne2 {[%emt 0:05:07]} Rc2 {[%emt 0:00:40]} (47... Re1 $5 {[%cal Re1e2]} 48. Ng1 e2 49. Nxe2 Rxe2 $15) 48. Nd4 {[%emt 0:00:15]} Rxa2 {[%emt 0:07:25]} 49. Nf3 {[%emt 0:00:08] Black must now prevent Rd5.} Rf2 {[%emt 0:02:28]} 50. Ng1 {[%emt 0:08:37]} (50. Rd8 $11) 50... Kf5 {[%emt 0:01:37]} ({Don't play} 50... Rd2 51. Ra3 $11) ({Black should try} 50... e2 $1 $15 51. Nxe2 Rxe2) 51. Rd5+ {[%emt 0:00:26]} Kf6 {[%emt 0:02:01]} 52. Kh3 {[%emt 0:02:01]} (52. Rd6+ $11 Ke5 53. Rg6) 52... Rf1 {[%emt 0:05:03]} (52... e2 $17 53. Nxe2 Rxe2) 53. Ne2 {[%emt 0:01:03]} Re1 {[%emt 0:02:11]} 54. Nc3 {[%emt 0:00:52]} Rc1 {[%emt 0:01:24]} 55. Ne2 {[%emt 0:01:01]} Rc2 {[%emt 0:00:28]} 56. Ng1 {[%emt 0:00:28] [#]} (56. Nd4 $11 {remains equal.} Rd2 57. Kg4) 56... Rf2 {[%emt 0:00:09]} ({Reject} 56... Rd2 57. Ra5 $11) (56... e2 $1 $17 57. Nxe2 Rxe2) 57. Ra5 {[%emt 0:00:38] The position is equal.} (57. Nf3 $2 {[#]} Rxf3+ $1 {[%mdl 512]} 58. gxf3 e2 59. Rd6+ Ke7 $19) 57... e2 {[%emt 0:00:41]} 58. Ra6+ {[%emt 0:00:39]} Ke7 {[%emt 0:01:18]} 59. Ra7+ {[%emt 0:00:13]} Kf6 {[%emt 0:00:52]} 60. Ra6+ {[%emt 0:00:05]} Kf7 {[%emt 0:00:15]} 61. Ra7+ {[%emt 0:00:08]} Kg6 {[%emt 0:01:16]} 62. Ra6+ {[%emt 0:00:11]} Kh5 {[%emt 0:00:16]} 63. g4+ {[%emt 0:00:35]} ({Don't blunder} 63. Re6 $2 g4+ 64. Kh2 f3 $19) 63... fxg3 {[%emt 0:00:23]} 64. Nxe2 {[%emt 0:00:09]} Rxe2 {[%emt 0:00:38]} 65. Kxg3 {[%emt 0:00:06] KR-KR} Re3+ {[%emt 0:00:06]} 66. Kf2 {[%emt 0:00:16]} Rb3 {[%emt 0:00:06]} 67. Ra4 {[%emt 0:00:14]} Kg6 {[%emt 0:00:10]} 68. Kg2 {[%emt 0:00:05]} Kf5 {[%emt 0:00:05]} 69. Rc4 {[%emt 0:00:16]} Re3 {[%emt 0:00:31]} 70. Ra4 {[%emt 0:00:23]} Re4 {[%emt 0:00:45]} 71. Rxe4 {[%emt 0:00:26]} Kxe4 {[%emt 0:00:06]} 72. Kg3 {[%emt 0:00:03]} g4 {[%emt 0:00:08]} 73. Kxg4 {[%emt 0:00:04] White happily takes the draw.  Weighted Error Value: White=0.32/Black=0.24 (precise)} 1/2-1/2

[Event "Czech Championship 2022"]
[Site "Usti nad Labem"]
[Date "2022.05.21"]
[Round "8.11"]
[White "Freisler, Pavel"]
[Black "Stinka, Jakub"]
[Result "1-0"]
[ECO "E04"]
[WhiteElo "2239"]
[BlackElo "2345"]
[Annotator "TA"]
[PlyCount "109"]
[EventDate "2022.05.12"]
[EventType "swiss"]
[EventCountry "CZE"]
[SourceTitle "playchess.com"]
[Source "ChessBase"]
[SourceQuality "1"]
[TimeControl "40/5400+30:1800+30"]

{[%evp 11,109,0,14,0,0,12,23,0,18,0,0,0,0,0,0,0,0,0,29,22,28,33,22,10,29,4,14,7,53,11,14,0,0,-10,-20,-19,-18,-19,-18,-10,-15,-44,0,0,0,0,0,0,0,0,0,0,48,45,45,8,10,0,7,0,14,0,0,0,12,22,36,8,8,8,8,8,8,0,0,0,0,0,8,8,8,8,8,8,12,8,8,8,13,14,1126,1055,29971,29972,29966,29966,29977,29977,29976,29976]} 1. d4 {[%emt 0:01:20]} Nf6 {[%emt 0:00:02]} 2. Nf3 {[%emt 0:01:22]} e6 {[%emt 0:00:02]} 3. c4 {[%emt 0:00:12]} d5 {[%emt 0:01:04]} 4. g3 {[%emt 0:01:23]} dxc4 {[%emt 0:00:11]} 5. Bg2 {[%emt 0:02:15]} Nc6 {[%emt 0:00:03]} 6. O-O {[%emt 0:01:57]} Rb8 {[%emt 0:00:24]} 7. Be3 {[%emt 0:01:24] E04: Open Catalan: 5 Nf3.} Be7 {[%emt 0:02:47]} 8. Qc1 {[%emt 0:04:25]} b5 {[%emt 0:07:19]} 9. b3 {[%emt 0:00:51] [#] White has an edge.} Ba6 $146 {[%emt 0:10:03]} ({Predecessor:} 9... O-O 10. bxc4 bxc4 11. Qxc4 Nb4 12. Qc1 Ba6 13. Re1 c5 14. dxc5 Qa5 15. Nd4 Bxc5 {½-½ (42) Kozul,Z (2589)-Farago,I (2367) Karlsruhe 2019}) 10. bxc4 {[%emt 0:12:45]} bxc4 {[%emt 0:00:34]} 11. Nbd2 {[%emt 0:00:34]} Na5 {[%emt 0:04:08]} 12. Ne5 {[%emt 0:08:07]} Nd5 {[%emt 0:07:43]} 13. Ndxc4 {[%emt 0:02:39]} Nxc4 {[%emt 0:00:19]} 14. Nxc4 {[%emt 0:02:03]} O-O {[%emt 0:00:48][%cal Oc7c5]} 15. Ne5 {[%emt 0:01:35] Nc6 is the strong threat.} Rb6 {[%emt 0:08:01]} 16. Nc6 {[%emt 0:19:10]} Qd6 {[%emt 0:01:10]} 17. Nxe7+ {[%emt 0:00:06]} Qxe7 {[%emt 0:00:04]} 18. Bf3 {[%emt 0:00:55]} Rfb8 {[%emt 0:01:37][%cal Bf8b8,Bb8b2,Bb2c2][%mdl 32]} 19. Rd1 {[%emt 0:02:01]} Rb2 {[%emt 0:06:18]} (19... Qd6 $11 {might be stronger.}) 20. Rd2 {[%emt 0:15:37]} (20. Bd2 $5 {[%cal Re2e4]}) 20... Qb4 {[%emt 0:10:42]} 21. Rxb2 {[%emt 0:04:52]} (21. a3 {is interesting.} Qb3 22. Rxb2 Qxb2 23. Kf1) 21... Qxb2 {[%emt 0:00:09]} 22. Qxb2 {[%emt 0:01:19]} Rxb2 {[%emt 0:00:04]} 23. Bc1 {[%emt 0:00:06]} Rc2 {[%emt 0:01:32]} 24. e3 {[%emt 0:02:56]} Bc4 {[%emt 0:05:16]} 25. a4 {[%emt 0:02:41]} Nc3 {[%emt 0:02:42] Inhibits Bd1.} 26. Ba3 {[%emt 0:02:36]} Bd5 {[%emt 0:01:31]} 27. Bxd5 {[%emt 0:01:07]} exd5 $11 {[%emt 0:00:06][%mdl 4096] Endgame KRB-KRN} 28. Bb4 {[%emt 0:00:32] Black must now prevent Bxc3.} Ne4 {[%emt 0:00:41]} 29. Be1 {[%emt 0:00:06]} (29. f3 Ng5 30. Rf1 Nh3+ 31. Kh1 Ra2 $15) 29... g5 {[%emt 0:01:52]} 30. g4 {[%emt 0:01:49]} Nd6 {[%emt 0:15:15]} 31. Rb1 {[%emt 0:01:07]} Rc4 {[%emt 0:01:15]} (31... Nc4 $11) 32. Bb4 {[%emt 0:00:42]} Ne4 {[%emt 0:02:17]} 33. Kg2 {[%emt 0:00:29]} Kg7 {[%emt 0:01:17]} 34. Rb2 {[%emt 0:01:27]} Kg6 {[%emt 0:03:21]} 35. a5 {[%emt 0:01:23]} f5 {[%emt 0:01:30]} 36. gxf5+ {[%emt 0:01:12]} Kxf5 {[%emt 0:00:02]} 37. f3 {[%emt 0:00:18]} Nf6 {[%emt 0:00:52]} 38. Be7 {[%emt 0:02:59]} a6 {[%emt 0:02:30]} 39. Bxf6 {[%emt 0:00:52]} Kxf6 $14 {[%emt 0:00:02] KR-KR} 40. Rb7 {[%emt 0:00:21]} h5 {[%emt 0:01:47]} 41. Ra7 {[%emt 0:00:49]} Rc6 {[%emt 0:00:52]} 42. Kg3 {[%emt 0:04:35]} Kf5 {[%emt 0:02:02]} 43. h4 {[%emt 0:02:49]} gxh4+ {[%emt 0:08:23]} 44. Kxh4 {[%emt 0:00:18]} Rc3 {[%emt 0:00:43]} 45. Rxa6 {[%emt 0:01:59] [#] And now Ra8 would win.} (45. Kxh5 Rxe3 46. Rxc7 (46. Rxa6 Rxf3 47. Kh4 Ra3 $17) 46... Rxf3 47. Rf7+ Ke4 48. Re7+ Kxd4 $17) 45... Rxe3 {[%emt 0:00:18]} 46. Ra8 {[%emt 0:00:14] Strongly threatening a6.} ({Reject} 46. Kxh5 Rxf3 47. Kh6 Ra3 $17) 46... Re7 $1 {[%emt 0:10:00]} 47. Rf8+ {[%emt 0:15:46]} Kg6 {[%emt 0:01:40]} 48. a6 {[%emt 0:03:34] White threatens a7 and mate.} c6 {[%emt 0:00:24]} 49. Rc8 {[%emt 0:00:08]} Kf5 {[%emt 0:03:05]} 50. Rxc6 {[%emt 0:00:05]} Re1 $2 {[%emt 0:03:58][%mdl 8192] [#] Loses the game.} (50... Kf4 $11) 51. Rc8 $1 $18 {[%emt 0:02:27]} Ra1 {[%emt 0:03:07]} 52. Rf8+ {[%emt 0:00:38] White mates.} Kg6 {[%emt 0:00:26]} 53. Ra8 {[%emt 0:00:06]} Kg7 {[%emt 0:01:31]} 54. a7 {[%emt 0:00:18]} Rh1+ {[%emt 0:01:04]} 55. Kg5 {[%emt 0:00:12] Weighted Error Value: White=0.06 (flawless) /Black=0.23 (precise)} 1-0